bitfinex/quotes_SOLUSD_20220113
["timestamp","ask_amount","ask_price","bid_price","bid_amount"]
[1642091890010,30.968538,154.42,154.35,8.7443]
[1642091890213,2.59,154.41,154.35,8.7443]
[1642091890411,20.24148024,154.41,154.35,8.7443]
[1642091890619,20.49148024,154.41,154.35,8.7443]
[1642091891011,26.75148024,154.41,154.34,8.7454]
[1642091891210,20.75148024,154.41,154.33,24.0329]
[1642091891413,20.75148024,154.41,154.28,10.411]
[1642091891614,43.61398024,154.41,154.27,49.3147]
[1642091891813,1.64999521,154.4,154.28,7.82]
[1642091892014,1.64999521,154.4,154.29,2.591]
[1642091892015,6.51,154.4,154.29,2.591]
[1642091892215,2.591,154.39,154.29,26.11586605]
[1642091892519,21.73631409,154.38,154.3,8.7476]
[1642091892815,2.591,154.37,154.3,8.7476]
[1642091893015,0.51,154.37,154.3,8.7476]
[1642091893714,0.25,154.37,154.3,8.7476]
[1642091894213,30.83731409,154.38,154.3,8.7476]
[1642091894414,28.24631409,154.38,154.3,8.7476]
[1642091896017,6.0,154.38,154.3,8.9976]
[1642091896217,2.591,154.4,154.3,14.7636]
[1642091896418,30.718538,154.42,154.31,69.12099521]
[1642091896620,30.718538,154.42,154.36,8.7423]
[1642091897016,30.718538,154.42,154.36,8.9923]
[1642091897215,30.718538,154.42,154.36,11.5823]
[1642091897619,30.718538,154.42,154.36,17.5823]
[1642091897817,30.718538,154.42,154.36,11.5823]
[1642091898018,30.718538,154.42,154.36,17.5823]
[1642091899119,30.718538,154.42,154.37,7.82]
[1642091899319,30.718538,154.42,154.39,8.7405]
[1642091899619,30.718538,154.42,154.4,6.06439993]
[1642091900019,30.718538,154.42,154.4,27.40172418]
[1642091900822,30.718538,154.42,154.41,8.7399]
[1642091901224,30.718538,154.42,154.41,8.9899]
[1642091902027,29.718538,154.42,154.41,8.9899]
[1642091902227,29.718538,154.42,154.41,8.7399]
[1642091902429,29.978538,154.42,154.4,6.06439993]
[1642091903128,30.228538,154.42,154.4,6.06439993]
[1642091903328,30.228538,154.42,154.39,19.23570092]
[1642091903526,30.228538,154.42,154.4,6.06439993]
[1642091904227,30.228538,154.42,154.4,3.03219997]
[1642091904428,29.978538,154.42,154.4,11.77409997]
[1642091904827,29.978538,154.42,154.41,3.03219996]
[1642091905828,29.718538,154.42,154.41,11.77329996]
[1642091906027,29.718538,154.42,154.41,12.02329996]
[1642091906231,29.718538,154.42,154.41,14.61329996]
[1642091906428,29.718538,154.42,154.41,56.02329996]
[1642091907030,29.718538,154.42,154.41,12.02329996]
[1642091908530,29.978538,154.42,154.41,12.02329996]
[1642091908731,29.218538,154.42,154.41,12.02329996]
[1642091910433,12.3007,154.52,154.42,9.201462]
[1642091910638,12.3007,154.52,154.44,8.7392]
[1642091910836,18.5507,154.52,154.44,8.7392]
[1642091911034,15.9607,154.52,154.45,23.21090503]
[1642091911236,0.25,154.52,154.45,23.21090503]
[1642091911436,0.25,154.52,154.45,23.46090503]
[1642091911637,2.589,154.54,154.45,32.19960503]
[1642091911848,2.589,154.55,154.45,32.19960503]
[1642091912147,2.589,154.55,154.45,38.19960503]
[1642091912340,2.588,154.56,154.45,38.19960503]
[1642091912744,2.588,154.58,154.45,52.31060503]
[1642091912944,2.588,154.58,154.52,8.7345]
[1642091913145,2.588,154.58,154.52,26.15384476]
[1642091914342,3.6281072,154.59,154.52,34.02584476]
[1642091914543,2.588,154.62,154.52,36.61384476]
[1642091914742,2.588,154.62,154.52,34.02584476]
[1642091915144,8.588,154.62,154.52,34.02584476]
[1642091915344,8.588,154.62,154.52,26.40384476]
[1642091915544,8.838,154.62,154.52,26.40384476]
[1642091915747,8.838,154.62,154.52,28.99084476]
[1642091915974,2.838,154.62,154.52,28.99084476]
[1642091916169,12.542,154.62,154.52,11.3215]
[1642091916375,28.01199521,154.62,154.51,8.7356]
[1642091917171,26.362,154.62,154.51,8.7356]
[1642091917370,26.622,154.62,154.51,27.25651182]
[1642091917872,28.27199521,154.62,154.51,27.25651182]
[1642091918679,28.02199521,154.62,154.51,27.25651182]
[1642091918874,31.65010241,154.62,154.51,8.9856]
[1642091919080,31.65010241,154.62,154.51,8.7356]
[1642091919675,28.02199521,154.62,154.49,8.7364]
[1642091919874,47.934944,154.62,154.48,6.0]
[1642091920076,54.54018424,154.62,154.48,6.0]
[1642091920476,147.94018424,154.62,154.47,8.587]
[1642091920679,9.7087,154.54,154.47,8.738]
[1642091920879,9.7087,154.54,154.47,14.738]
[1642091921079,9.098,154.54,154.47,14.738]
[1642091922083,9.098,154.54,154.45,8.7386]
[1642091922279,9.098,154.54,154.43,2.588]
[1642091922483,64.88,154.53,154.4,20.79899052]
[1642091922679,18.59857401,154.52,154.4,20.79899052]
[1642091923088,34.81897401,154.52,154.44,8.7396]
[1642091923583,2.589,154.51,154.44,8.7396]
[1642091923781,25.10857401,154.52,154.44,11.3286]
[1642091923983,0.26,154.52,154.44,11.3286]
[1642091924482,8.589,154.56,154.44,17.5786]
[1642091924682,6.0,154.56,154.44,17.5786]
[1642091925081,13.82,154.57,154.44,17.5786]
[1642091925282,9.708,154.55,154.44,11.5786]
[1642091925491,15.958,154.55,154.44,11.5786]
[1642091925683,7.82,154.54,154.44,11.3286]
[1642091925888,2.589,154.53,154.43,8.7402]
[1642091926086,18.30899521,154.53,154.37,2.589]
[1642091926483,9.7106,154.51,154.37,2.589]
[1642091926683,9.7106,154.51,154.38,19.05492041]
[1642091926883,9.7106,154.51,154.39,2.589]
[1642091926884,10.2206,154.51,154.39,2.589]
[1642091927083,16.2206,154.51,154.39,2.589]
[1642091927283,16.2206,154.51,154.42,8.7403]
[1642091927484,16.2206,154.51,154.43,19.70352533]
[1642091929787,64.88,154.5,154.42,8.7403]
[1642091929987,9.7126,154.47,154.39,2.589]
[1642091930389,16.2226,154.47,154.39,11.331]
[1642091930591,16.2226,154.47,154.39,2.589]
[1642091930988,9.7167,154.41,154.35,22.23927443]
[1642091931390,16.2267,154.41,154.35,22.23927443]
[1642091932590,16.2267,154.41,154.33,76.2801]
[1642091932791,16.2267,154.41,154.32,27.5362]
[1642091932992,81.1067,154.41,154.32,2.591]
[1642091933397,2.591,154.4,154.32,2.591]
[1642091933593,27.21815373,154.36,154.32,2.591]
[1642091933797,2.591,154.35,154.27,16.88498533]
[1642091933993,9.101,154.35,154.27,16.88498533]
[1642091934793,9.7222,154.32,154.27,16.88498533]
[1642091934992,10.2322,154.32,154.27,22.88498533]
[1642091935192,10.2322,154.32,154.27,16.88498533]
[1642091937097,10.2322,154.32,154.23,2.592]
[1642091937296,16.2322,154.32,154.23,2.592]
[1642091937596,16.2322,154.32,154.23,2.842]
[1642091938105,16.2322,154.32,154.24,21.85892578]
[1642091938301,16.2322,154.32,154.25,8.7505]
[1642091938499,10.2322,154.32,154.25,9.0005]
[1642091939002,0.51,154.32,154.25,9.0005]
[1642091939200,0.51,154.32,154.25,11.5925]
[1642091939400,6.51,154.33,154.25,11.5925]
[1642091939598,0.51,154.33,154.25,9.0005]
[1642091939799,6.51,154.33,154.25,9.0005]
[1642091940201,9.7219,154.32,154.25,8.7505]
[1642091940400,0.26,154.33,154.25,9.0005]
[1642091940600,8.592,154.36,154.26,2.592]
[1642091940802,2.592,154.38,154.29,8.7478]
[1642091941000,6.0,154.38,154.3,2.591]
[1642091941200,9.719,154.37,154.3,2.591]
[1642091941401,9.719,154.37,154.28,2.591]
[1642091941603,9.719,154.37,154.29,22.05973452]
[1642091942001,9.719,154.37,154.29,22.30973452]
[1642091942200,9.719,154.37,154.31,8.7469]
[1642091942501,9.719,154.37,154.3,2.591]
[1642091942701,9.719,154.37,154.29,22.05973452]
[1642091942900,7.82,154.39,154.29,22.30973452]
[1642091943304,10.411,154.42,154.29,22.30973452]
[1642091943508,10.411,154.42,154.29,28.30973452]
[1642091943708,7.82,154.42,154.29,28.30973452]
[1642091943911,13.82,154.42,154.29,28.30973452]
[1642091944307,9.7171,154.4,154.3,8.7476]
[1642091944507,15.7171,154.4,154.3,8.9976]
[1642091945107,15.7171,154.4,154.3,14.9976]
[1642091945508,9.7165,154.41,154.31,2.591]
[1642091945712,2.591,154.43,154.36,8.7444]
[1642091945912,6.0,154.41,154.36,8.7444]
[1642091946111,6.0,154.43,154.32,2.59]
[1642091946311,6.0,154.45,154.33,0.25]
[1642091946511,7.82,154.46,154.33,0.25]
[1642091946512,20.4102104,154.42,154.33,0.25]
[1642091946714,20.4102104,154.42,154.32,30.98878827]
[1642091946912,2.591,154.41,154.32,30.98878827]
[1642091947114,8.841,154.41,154.32,30.98878827]
[1642091947314,9.101,154.41,154.32,30.98878827]
[1642091947513,9.101,154.41,154.32,31.23878827]
[1642091947713,8.851,154.41,154.32,31.23878827]
[1642091947915,8.851,154.41,154.32,30.98878827]
[1642091948115,9.7177,154.39,154.32,31.23878827]
[1642091948315,9.7177,154.39,154.32,30.98878827]
[1642091948516,15.9777,154.39,154.32,30.98878827]
[1642091949015,6.26,154.39,154.32,30.98878827]
[1642091949221,0.26,154.39,154.32,30.98878827]
[1642091949416,6.26,154.39,154.32,30.98878827]
[1642091949637,6.0,154.39,154.32,30.98878827]
[1642091949838,6.26,154.39,154.32,30.98878827]
[1642091950036,6.51,154.39,154.32,30.98878827]
[1642091950538,0.25,154.39,154.32,30.98878827]
[1642091950737,6.25,154.39,154.32,30.98878827]
[1642091950938,27.3039335,154.39,154.32,8.7462]
[1642091951139,37.2718335,154.39,154.32,8.7462]
[1642091951540,37.2718335,154.39,154.3,49.9876]
[1642091951743,2.591,154.38,154.28,2.591]
[1642091951939,3.101,154.38,154.27,104.92664019]
[1642091952142,9.101,154.38,154.27,104.92664019]
[1642091952740,9.101,154.38,154.27,105.17664019]
[1642091953142,9.7203,154.35,154.29,8.7478]
[1642091953540,10.2303,154.35,154.29,8.7478]
[1642091953741,0.26,154.35,154.29,8.7478]
[1642091954143,9.101,154.38,154.29,8.7478]
[1642091954446,9.7189,154.37,154.31,8.747]
[1642091954843,15.9789,154.37,154.31,8.747]
[1642091955044,15.9789,154.37,154.3,16.91798896]
[1642091955441,9.9789,154.37,154.3,16.91798896]
[1642091955642,15.9789,154.37,154.3,16.91798896]
[1642091956042,16.2289,154.37,154.3,16.91798896]
[1642091957942,16.2289,154.37,154.3,25.66568896]
[1642091958541,10.2289,154.37,154.3,25.66568896]
[1642091959042,16.2289,154.37,154.3,16.91798896]
[1642091959243,16.2289,154.37,154.27,85.8535]
[1642091960042,81.1089,154.37,154.27,85.8535]
[1642091960243,16.2289,154.37,154.28,20.79554742]
[1642091960642,16.2289,154.37,154.28,26.79554742]
[1642091961545,18.71659025,154.36,154.28,6.0]
[1642091961747,18.71659025,154.36,154.26,2.592]
[1642091961748,9.722,154.33,154.26,2.592]
[1642091961946,10.232,154.33,154.25,23.2695]
[1642091962150,16.232,154.33,154.25,23.2695]
[1642091962346,2.592,154.32,154.25,23.2695]
[1642091962546,3.102,154.32,154.25,23.2695]
[1642091962746,9.7233,154.3,154.24,8.7511]
[1642091962945,6.51,154.3,154.21,26.061]
[1642091963146,6.51,154.3,154.21,23.469]
[1642091963549,0.51,154.3,154.21,23.469]
[1642091963747,0.25,154.3,154.21,23.469]
[1642091963946,9.9735,154.3,154.21,32.221]
[1642091964150,9.7235,154.3,154.21,32.221]
[1642091964350,9.9735,154.3,154.22,2.593]
[1642091964548,9.9735,154.3,154.23,18.20064442]
[1642091964950,16.2335,154.3,154.23,26.95244442]
[1642091965150,16.2335,154.3,154.23,18.20064442]
[1642091965553,16.2335,154.3,154.22,2.593]
[1642091965752,9.7255,154.27,154.21,23.469]
[1642091965951,10.2355,154.27,154.21,23.469]
[1642091966552,10.2355,154.27,154.22,23.68815289]
[1642091970066,0.51,154.27,154.22,32.44035289]
[1642091970260,0.26,154.27,154.22,32.69035289]
[1642091970459,10.2347,154.28,154.22,32.69035289]
[1642091970660,0.51,154.28,154.22,32.69035289]
[1642091970861,2.593,154.33,154.22,32.69035289]
[1642091971063,0.25,154.31,154.23,2.592]
[1642091971263,9.9732,154.31,154.25,8.7504]
[1642091971760,9.9732,154.31,154.25,31.52200452]
[1642091971965,9.7232,154.31,154.25,31.52200452]
[1642091973163,9.7232,154.31,154.23,11.3433]
[1642091973364,16.2332,154.31,154.23,11.3433]
[1642091973965,10.2332,154.31,154.23,11.3433]
[1642091974165,10.2332,154.31,154.24,23.80310809]
[1642091974365,10.2332,154.31,154.24,32.55430809]
[1642091974966,9.9732,154.31,154.24,32.55430809]
[1642091975168,9.7232,154.31,154.24,32.55430809]
[1642091975366,9.7222,154.32,154.24,32.55430809]
[1642091975565,32.409,154.35,154.24,32.55430809]
[1642091975967,6.0,154.35,154.24,32.80430809]
[1642091976365,32.4073,154.36,154.24,32.80430809]
[1642091976567,9.7215,154.33,154.26,8.75]
[1642091976767,9.7215,154.33,154.27,18.06185276]
[1642091976966,15.7215,154.33,154.27,18.06185276]
[1642091977969,15.9815,154.33,154.27,26.81135276]
[1642091978370,16.2315,154.33,154.27,26.81135276]
[1642091978870,15.9715,154.33,154.27,26.81135276]
[1642091979070,15.9715,154.33,154.25,26.2507]
[1642091979770,15.9715,154.33,154.25,23.6587]
[1642091980171,19.31424214,154.32,154.25,23.6587]
[1642091980375,9.7237,154.3,154.25,23.6587]
[1642091980571,16.2337,154.3,154.24,2.842]
[1642091980772,10.2337,154.3,154.24,2.842]
[1642091982174,10.2337,154.3,154.24,11.5932]
[1642091982376,10.2337,154.3,154.24,2.842]
[1642091982577,16.2337,154.3,154.24,0.25]
[1642091982979,16.2337,154.3,154.23,2.842]
[1642091983599,0.51,154.3,154.24,8.7512]
[1642091983999,10.2327,154.31,154.24,9.0012]
[1642091984198,9.9727,154.31,154.24,9.0012]
[1642091984398,0.25,154.31,154.24,9.0012]
[1642091984599,8.842,154.34,154.25,19.6281]
[1642091984799,9.7221,154.32,154.26,8.7501]
[1642091984999,9.9721,154.32,154.26,8.7501]
[1642091986701,10.2321,154.32,154.26,8.7501]
[1642091987105,9.9721,154.32,154.26,8.7501]
[1642091987504,15.9721,154.32,154.26,8.7501]
[1642091987703,15.9721,154.32,154.25,28.3788]
[1642091988504,16.2321,154.32,154.25,28.3788]
[1642091989705,15.9721,154.32,154.25,28.3788]
[1642091990308,37.54390287,154.32,154.25,28.3788]
[1642091990512,37.54390287,154.32,154.24,31.5024]
[1642091991307,37.80390287,154.32,154.24,31.5024]
[1642091993210,37.54390287,154.32,154.24,31.5024]
[1642091994812,37.80390287,154.32,154.24,31.5024]
[1642091996011,16.2321,154.32,154.24,34.0944]
[1642091999719,21.66765751,154.31,154.24,34.0944]
[1642091999920,9.7238,154.29,154.24,34.0944]
[1642092000320,16.2338,154.29,154.24,2.592]
[1642092000722,16.2338,154.29,154.21,23.469]
[1642092000924,9.7261,154.26,154.21,23.469]
[1642092001320,10.2361,154.26,154.21,23.469]
[1642092001521,10.2361,154.26,154.21,26.062]
[1642092002548,10.2361,154.26,154.21,23.469]
[1642092002949,12.114,154.26,154.2,2.593]
[1642092003150,14.707,154.26,154.19,96.8523]
[1642092003349,12.114,154.26,154.19,96.8523]
[1642092003950,9.7277,154.23,154.19,96.8523]
[1642092004152,9.7277,154.23,154.17,27.96885919]
[1642092004351,9.9877,154.23,154.18,2.594]
[1642092004751,0.26,154.23,154.18,2.844]
[1642092005153,9.7272,154.24,154.18,11.3485]
[1642092005652,16.2372,154.24,154.18,11.3485]
[1642092007655,16.2372,154.24,154.18,8.7545]
[1642092008755,15.9872,154.24,154.18,8.7545]
[1642092008957,2.593,154.26,154.19,2.593]
[1642092009160,2.593,154.26,154.2,8.7512]
[1642092009356,2.593,154.26,154.21,2.593]
[1642092009559,2.593,154.26,154.21,8.843]
[1642092009757,2.593,154.26,154.22,2.593]
[1642092009957,1.78629999,154.3,154.22,61.47896554]
[1642092010159,1.78629999,154.33,154.22,32.31156554]
[1642092010559,1.78629999,154.33,154.23,22.7734]
[1642092010760,1.78629999,154.33,154.24,2.592]
[1642092010959,2.03629999,154.33,154.24,8.842]
[1642092011163,2.03629999,154.33,154.25,23.1090137]
[1642092011859,11.75899999,154.33,154.25,23.1090137]
[1642092012060,9.7227,154.33,154.25,23.1090137]
[1642092012259,9.7227,154.33,154.24,2.592]
[1642092012459,2.592,154.32,154.22,2.592]
[1642092012658,67.472,154.32,154.21,1.85317668]
[1642092012858,8.592,154.32,154.21,2.10317668]
[1642092013059,9.7241,154.31,154.21,0.25]
[1642092013358,9.7241,154.31,154.21,19.41377236]
[1642092013559,15.9841,154.31,154.21,28.16547236]
[1642092013764,0.26,154.31,154.21,28.16547236]
[1642092014061,2.592,154.32,154.21,28.16547236]
[1642092014262,1.78629999,154.33,154.22,2.592]
[1642092014465,1.78629999,154.33,154.22,32.3093]
[1642092014671,1.78629999,154.33,154.27,8.7483]
[1642092014869,1.78629999,154.33,154.27,28.55047208]
[1642092015066,12.19829999,154.35,154.27,28.55047208]
[1642092015571,12.44829999,154.35,154.27,28.55047208]
[1642092015766,4.37829999,154.35,154.27,34.55047208]
[1642092015966,1.78629999,154.35,154.27,37.14247208]
[1642092016165,1.78629999,154.36,154.27,37.14247208]
[1642092016368,1.78629999,154.36,154.27,37.39247208]
[1642092016567,1.78629999,154.36,154.27,45.47247208]
[1642092016766,9.999e-05,154.36,154.28,91.0]
[1642092016972,9.999e-05,154.36,154.32,8.7435]
[1642092017171,9.999e-05,154.36,154.33,2.591]
[1642092017371,9.999e-05,154.36,154.34,3.03219996]
[1642092017572,9.999e-05,154.36,154.35,2.591]
[1642092017773,3.6281072,154.4,154.35,2.591]
[1642092017973,3.6281072,154.43,154.35,0.25]
[1642092018176,3.6281072,154.43,154.35,30.91780899]
[1642092018375,9.8781072,154.43,154.35,30.91780899]
[1642092018777,3.8781072,154.43,154.35,30.66780899]
[1642092019174,0.25,154.43,154.35,30.66780899]
[1642092019575,16.922,154.45,154.34,11.3354]
[1642092019776,16.922,154.45,154.3,2.59]
[1642092020075,9.7162,154.43,154.3,2.59]
[1642092020276,2.591,154.42,154.3,2.59]
[1642092020479,8.851,154.42,154.3,25.32081741]
[1642092020676,9.101,154.42,154.3,25.32081741]
[1642092021100,8.841,154.42,154.3,25.32081741]
[1642092021305,8.841,154.42,154.3,34.06841741]
[1642092022402,19.78949813,154.4,154.3,34.06841741]
[1642092022603,20.03949813,154.4,154.3,34.31841741]
[1642092023102,26.29949813,154.4,154.3,34.31841741]
[1642092023804,26.29949813,154.4,154.3,11.3376]
[1642092024204,36.01779813,154.4,154.3,11.3376]
[1642092024404,30.01779813,154.4,154.3,11.3376]
[1642092024811,30.01779813,154.4,154.3,32.75864323]
[1642092025012,35.75779813,154.4,154.3,32.75864323]
[1642092025208,20.03949813,154.4,154.3,32.75864323]
[1642092025412,0.25,154.4,154.3,97.88864323]
[1642092025613,2.841,154.42,154.31,22.9839]
[1642092025808,2.841,154.42,154.32,2.591]
[1642092026009,2.841,154.42,154.36,7.7725]
[1642092026412,2.59,154.44,154.37,23.83216367]
[1642092026614,2.59,154.47,154.37,26.42216367]
[1642092026811,6.2181072,154.48,154.37,26.67216367]
[1642092027012,6.2181072,154.48,154.41,7.7696]
[1642092027714,2.59,154.48,154.41,7.7696]
[1642092027914,8.84,154.48,154.41,7.7696]
[1642092028124,2.59,154.48,154.41,7.7696]
[1642092028516,2.589,154.5,154.41,7.7696]
[1642092028916,18.3006,154.5,154.41,7.7696]
[1642092029119,12.3006,154.5,154.41,7.7696]
[1642092029315,18.3006,154.5,154.41,7.7696]
[1642092029515,18.5506,154.5,154.41,8.0196]
[1642092029918,15.9616,154.5,154.42,2.589]
[1642092030117,15.9616,154.5,154.42,10.3581]
[1642092031118,0.25,154.5,154.43,18.97969304]
[1642092031321,10.409,154.53,154.45,7.768]
[1642092031524,16.409,154.53,154.45,7.768]
[1642092032220,26.1183,154.53,154.45,7.768]
[1642092032420,17.5293,154.53,154.45,7.768]
[1642092032622,23.5293,154.53,154.45,7.768]
[1642092033022,23.7793,154.53,154.45,7.768]
[1642092033721,26.3683,154.53,154.45,7.768]
[1642092034123,26.3683,154.53,154.41,78.6658]
[1642092034524,26.3683,154.53,154.41,78.9158]
[1642092034723,26.3683,154.53,154.41,78.6658]
[1642092034924,26.6283,154.53,154.41,95.85347951]
[1642092035124,26.6283,154.53,154.41,103.62317951]
[1642092035725,26.6283,154.53,154.41,86.4355]
[1642092035926,26.6283,154.53,154.41,78.6658]
[1642092036127,28.27829521,154.53,154.41,78.6658]
[1642092036325,28.27829521,154.53,154.41,2.589]
[1642092037226,28.27829521,154.53,154.41,10.3591]
[1642092037429,28.27829521,154.53,154.41,7.7701]
[1642092037628,26.6283,154.53,154.41,7.7701]
[1642092038030,26.6283,154.53,154.41,82.6159]
[1642092039527,26.3783,154.53,154.41,82.8659]
[1642092039952,26.3783,154.53,154.42,22.8937]
[1642092040151,26.3783,154.53,154.44,7.7685]
[1642092040854,26.6283,154.53,154.44,7.7685]
[1642092042057,26.3683,154.53,154.44,7.7685]
[1642092042257,8.839,154.53,154.44,7.7685]
[1642092042459,8.839,154.53,154.44,8.0185]
[1642092042657,6.0,154.53,154.45,2.589]
[1642092042857,6.0,154.53,154.47,7.7667]
[1642092043058,6.0,154.53,154.48,2.588]
[1642092043259,6.0,154.53,154.45,2.838]
[1642092043457,13.82,154.56,154.45,2.838]
[1642092043656,7.82,154.56,154.45,2.838]
[1642092043857,7.82,154.56,154.48,7.7663]
[1642092044159,9.7072,154.57,154.49,2.588]
[1642092044356,3.6281072,154.59,154.49,2.588]
[1642092044559,93.5502072,154.6,154.49,2.588]
[1642092044761,17.43591701,154.59,154.49,21.83145628]
[1642092044957,2.588,154.58,154.49,19.24345628]
[1642092045359,8.838,154.58,154.49,19.24345628]
[1642092045761,9.098,154.58,154.49,19.24345628]
[1642092045960,3.098,154.58,154.49,19.24345628]
[1642092046162,12.8041,154.58,154.5,7.7656]
[1642092046362,12.5541,154.58,154.5,7.7656]
[1642092046562,17.43591701,154.59,154.5,7.7656]
[1642092047364,6.0,154.59,154.51,19.21828787]
[1642092047566,9.7053,154.59,154.52,7.7645]
[1642092047762,9.9553,154.59,154.52,7.7645]
[1642092047964,15.9553,154.59,154.52,7.7645]
[1642092048165,23.7753,154.59,154.49,2.588]
[1642092048363,2.588,154.58,154.48,23.4001]
[1642092048564,9.7086,154.54,154.48,23.4001]
[1642092048967,15.9586,154.54,154.48,23.4001]
[1642092049167,16.2186,154.54,154.48,23.4001]
[1642092049466,16.2186,154.54,154.48,7.7666]
[1642092049467,0.51,154.54,154.48,7.7666]
[1642092049668,2.588,154.57,154.48,7.7666]
[1642092049867,7.82,154.59,154.49,2.588]
[1642092050066,17.4481072,154.59,154.49,2.588]
[1642092050266,17.4481072,154.59,154.48,2.588]
[1642092050473,17.4481072,154.59,154.48,96.2281]
[1642092050672,9.7057,154.58,154.51,7.7648]
[1642092051068,15.9657,154.58,154.51,7.7648]
[1642092052070,16.2157,154.58,154.49,7.7658]
[1642092052672,15.7057,154.58,154.49,7.7658]
[1642092052871,6.2161072,154.61,154.49,13.7658]
[1642092053072,3.6281072,154.61,154.5,2.588]
[1642092053272,3.6281072,154.61,154.55,7.7628]
[1642092053672,3.6281072,154.63,154.55,7.7628]
[1642092053873,3.6281072,154.63,154.55,30.19477772]
[1642092054073,3.1281072,154.63,154.55,30.19477772]
[1642092054273,9.7031,154.62,154.55,7.7628]
[1642092054473,15.7031,154.62,154.55,7.7628]
[1642092054674,3.1281072,154.63,154.55,7.7628]
[1642092054873,7.82,154.64,154.55,7.7628]
[1642092055076,6.0,154.63,154.55,7.7628]
[1642092055275,6.0,154.63,154.56,23.76611576]
[1642092055474,13.82,154.64,154.57,7.7617]
[1642092056174,2.587,154.66,154.57,7.7617]
[1642092056375,8.0477112,154.68,154.57,86.7117]
[1642092056575,5.4607112,154.68,154.58,4.23599521]
[1642092056774,5.4607112,154.68,154.63,7.7576]
[1642092056976,5.4607112,154.68,154.64,2.586]
[1642092057378,5.4607112,154.68,154.6,2.586]
[1642092057578,5.4607112,154.68,154.6,0.25]
[1642092057775,5.4607112,154.68,154.63,24.69520798]
[1642092057976,5.7107112,154.68,154.63,24.69520798]
[1642092058176,0.25,154.68,154.63,7.7591]
[1642092058416,0.25,154.68,154.61,2.586]
[1642092058615,9.7011,154.66,154.59,74.6572]
[1642092059013,16.2111,154.66,154.59,74.6572]
[1642092059212,16.2111,154.66,154.59,22.96240097]
[1642092060012,2.586,154.65,154.54,72.5434]
[1642092060215,9.7035,154.62,154.54,72.5434]
[1642092060413,9.7035,154.62,154.54,78.5434]
[1642092060611,9.9635,154.62,154.54,78.5434]
[1642092060812,10.2135,154.62,154.54,78.5434]
[1642092061013,10.2135,154.62,154.55,21.35705639]
[1642092061321,0.26,154.62,154.55,21.60705639]
[1642092061514,9.7019,154.64,154.55,27.60705639]
[1642092061713,0.25,154.65,154.55,27.60705639]
[1642092061912,6.0,154.66,154.55,27.86705639]
[1642092062114,6.25,154.66,154.55,27.86705639]
[1642092062312,0.25,154.66,154.55,27.86705639]
[1642092062717,0.25,154.66,154.57,7.7618]
[1642092062916,0.25,154.66,154.57,10.3488]
[1642092063112,8.837,154.68,154.57,16.5988]
[1642092063312,8.837,154.68,154.57,81.7388]
[1642092063514,9.097,154.68,154.57,81.7388]
[1642092063715,9.6998,154.67,154.57,81.7388]
[1642092064116,15.9498,154.67,154.57,81.4788]
[1642092064716,15.6998,154.67,154.57,81.4788]
[1642092065016,9.9598,154.67,154.57,81.4788]
[1642092066118,10.2098,154.67,154.57,81.4788]
[1642092066317,16.2098,154.67,154.57,81.4788]
[1642092066718,12.2865,154.66,154.57,14.0118]
[1642092066918,9.7005,154.66,154.57,14.0118]
[1642092067119,16.2105,154.66,154.57,14.0118]
[1642092067319,16.2105,154.66,154.57,7.7618]
[1642092067521,2.587,154.65,154.57,7.7618]